[Event "*** Titled Tuesday Blitz"]
[Site "Chess.com"]
[Date "2021.02.02"]
[Round "6"]
[White "AlexSuv"]
[Black "annacramling"]
[Result "1-0"]
[WhiteElo "2475"]
[BlackElo "2112"]
[TimeControl "180+1"]
[EndTime "11:09:42 PST"]
[Termination "AlexSuv won by resignation"]

1. d4 {[%clk 0:03:00.9]} 1... Nf6 {[%clk 0:02:58.7]} 2. c4 {[%clk 0:03:00.3]}
2... e6 {[%clk 0:02:57.9]} 3. Nc3 {[%clk 0:02:56.8]} 3... d5 {[%clk 0:02:57.3]}
4. cxd5 {[%clk 0:02:55.1]} 4... exd5 {[%clk 0:02:58.2]} 5. Bg5 {[%clk
0:02:54.4]} 5... Be7 {[%clk 0:02:58.1]} 6. e3 {[%clk 0:02:53.9]} 6... c6 {[%clk
0:02:56.8]} 7. Bd3 {[%clk 0:02:53.7]} 7... O-O {[%clk 0:02:53.9]} 8. Qc2 {[%clk
0:02:53.9]} 8... h6 {[%clk 0:02:54.2]} 9. Bh4 {[%clk 0:02:53.3]} 9... Be6 {[%clk
0:02:50.7]} 10. Nge2 {[%clk 0:02:52.4]} 10... Nbd7 {[%clk 0:02:50.6]} 11. O-O
{[%clk 0:02:52.2]} 11... c5 {[%clk 0:02:48.2]} 12. Rae1 {[%clk 0:02:50.9]} 12...
Rc8 {[%clk 0:02:47.3]} 13. Nf4 {[%clk 0:02:48.6]} 13... cxd4 {[%clk 0:02:00.7]}
14. exd4 {[%clk 0:02:42.6]} 14... Qb6 {[%clk 0:01:30.6]} 15. Nxe6 {[%clk
0:02:29.1]} 15... fxe6 {[%clk 0:01:31.5]} 16. Qe2 {[%clk 0:02:29]} 16... Bb4
{[%clk 0:01:20.9]} 17. Qxe6+ {[%clk 0:02:06]} 17... Qxe6 {[%clk 0:01:19.6]} 18.
Rxe6 {[%clk 0:02:06.9]} 18... Bxc3 {[%clk 0:01:19.5]} 19. bxc3 {[%clk
0:02:07.6]} 19... Rxc3 {[%clk 0:01:19.7]} 20. Bg6 {[%clk 0:02:07.2]} 20... Rfc8
{[%clk 0:01:15.6]} 21. h3 {[%clk 0:02:02.4]} 21... Nf8 {[%clk 0:00:59.6]} 22.
Bf5 {[%clk 0:02:02.4]} 22... Nxe6 {[%clk 0:00:53.6]} 23. Bxe6+ {[%clk
0:02:03.3]} 23... Kf8 {[%clk 0:00:45.4]} 24. Bxc8 {[%clk 0:02:04.2]} 24... Rxc8
{[%clk 0:00:44.7]} 25. Rb1 {[%clk 0:02:04.9]} 25... b6 {[%clk 0:00:43.1]} 26. f3
{[%clk 0:02:05.1]} 26... Rc2 {[%clk 0:00:42.2]} 27. a3 {[%clk 0:02:01]} 27...
Ra2 {[%clk 0:00:38]} 28. Rb3 {[%clk 0:02:00.7]} 28... Rd2 {[%clk 0:00:32.7]} 29.
Bf2 {[%clk 0:01:54.5]} 29... Ne8 {[%clk 0:00:21.6]} 30. Be3 {[%clk 0:01:52.2]}
30... Rc2 {[%clk 0:00:15.3]} 31. Bf4 {[%clk 0:01:51.2]} 31... Kf7 {[%clk
0:00:10.6]} 32. Be5 {[%clk 0:01:49.3]} 32... Nc7 {[%clk 0:00:07.5]} 33. h4
{[%clk 0:01:45.5]} 33... Ne6 {[%clk 0:00:07.6]} 34. h5 {[%clk 0:01:36.6]} 34...
Rc4 {[%clk 0:00:04.3]} 35. Rd3 {[%clk 0:01:35.3]} 35... Ra4 {[%clk 0:00:03.5]}
36. g4 {[%clk 0:01:31.6]} 36... a5 {[%clk 0:00:02.2]} 37. Kg2 {[%clk 0:01:31.9]}
37... b5 {[%clk 0:00:02.5]} 38. Kg3 {[%clk 0:01:32.5]} 38... b4 {[%clk
0:00:02.7]} 39. axb4 {[%clk 0:01:33.4]} 39... axb4 {[%clk 0:00:03.6]} 40. Rb3
{[%clk 0:01:31.2]} 40... Nd8 {[%clk 0:00:02.1]} 41. Bd6 {[%clk 0:01:27.8]} 41...
Nc6 {[%clk 0:00:02.8]} 42. Bc5 {[%clk 0:01:26.4]} 42... Ra3 {[%clk 0:00:02.7]}
43. Rb1 {[%clk 0:01:20.6]} 43... Ra4 {[%clk 0:00:02.9]} 44. Kf4 {[%clk
0:01:16.8]} 44... Ke6 {[%clk 0:00:03.3]} 45. Re1+ {[%clk 0:01:16.1]} 45... Kf6
{[%clk 0:00:03.9]} 46. Rb1 {[%clk 0:01:10.3]} 46... b3 {[%clk 0:00:04.4]} 47.
Ke3 {[%clk 0:01:05.3]} 47... Na5 {[%clk 0:00:04.8]} 48. Kd3 {[%clk 0:00:56.6]}
48... Nb7 {[%clk 0:00:02]} 49. Rxb3 {[%clk 0:00:55]} 49... Nxc5+ {[%clk
0:00:02.3]} 50. dxc5 {[%clk 0:00:55.8]} 50... Rc4 {[%clk 0:00:02.4]} 51. Rc3
{[%clk 0:00:53.3]} 51... Rf4 {[%clk 0:00:02.1]} 52. Ke2 {[%clk 0:00:48.7]} 52...
Ke7 {[%clk 0:00:02]} 53. c6 {[%clk 0:00:48.7]} 53... Kd8 {[%clk 0:00:02.3]} 54.
c7+ {[%clk 0:00:49.3]} 54... Kc8 {[%clk 0:00:02.5]} 55. Rc5 {[%clk 0:00:50]}
55... d4 {[%clk 0:00:01.8]} 56. Kf2 {[%clk 0:00:43.9]} 56... Rf7 {[%clk
0:00:02]} 57. Rc4 {[%clk 0:00:43.2]} 57... Rf4 {[%clk 0:00:02.2]} 58. Kg3 {[%clk
0:00:42.6]} 58... Rf7 {[%clk 0:00:02]} 59. Rxd4 {[%clk 0:00:41.3]} 59... Kxc7
{[%clk 0:00:02.6]} 60. f4 {[%clk 0:00:40.9]} 60... Kc6 {[%clk 0:00:02.6]} 61. g5
{[%clk 0:00:41.2]} 61... Kc5 {[%clk 0:00:03.1]} 62. Rd8 {[%clk 0:00:41.2]} 62...
hxg5 {[%clk 0:00:03.5]} 63. fxg5 {[%clk 0:00:42.1]} 63... Rf5 {[%clk 0:00:03.8]}
64. Kg4 {[%clk 0:00:42.4]} 64... Rf7 {[%clk 0:00:03.9]} 65. h6 {[%clk
0:00:41.1]} 65... gxh6 {[%clk 0:00:04]} 66. gxh6 {[%clk 0:00:42]} 66... Rh7
{[%clk 0:00:02]} 67. Kg5 {[%clk 0:00:42]} 67... Kc6 {[%clk 0:00:01.8]} 68. Kg6
{[%clk 0:00:42.1]} 68... Re7 {[%clk 0:00:01.8]} 69. h7 {[%clk 0:00:41.9]} 69...
Re6+ {[%clk 0:00:02.4]} 70. Kf5 {[%clk 0:00:42.1]} 70... Rh6 {[%clk 0:00:02.1]}
71. h8=Q {[%clk 0:00:42]} 1-0

[Event "*** Titled Tuesday Blitz"]
[Site "Chess.com"]
[Date "2021.02.02"]
[Round "6"]
[White "SHIVACalypso"]
[Black "andriipalchuk"]
[Result "1-0"]
[WhiteElo "2387"]
[BlackElo "2580"]
[TimeControl "180+1"]
[EndTime "11:09:46 PST"]
[Termination "SHIVACalypso won on time"]

1. Nf3 {[%clk 0:03:00.9]} 1... Nf6 {[%clk 0:02:53.1]} 2. c4 {[%clk 0:03:01.8]}
2... e6 {[%clk 0:02:51.6]} 3. g3 {[%clk 0:03:01.4]} 3... d5 {[%clk 0:02:52]} 4.
Bg2 {[%clk 0:03:02.3]} 4... dxc4 {[%clk 0:02:52.5]} 5. Qa4+ {[%clk 0:03:01.5]}
5... Nbd7 {[%clk 0:02:46.3]} 6. Qxc4 {[%clk 0:03:00.8]} 6... a6 {[%clk
0:02:42.1]} 7. O-O {[%clk 0:02:54.4]} 7... b5 {[%clk 0:02:41.6]} 8. Qc2 {[%clk
0:02:45.6]} 8... Bb7 {[%clk 0:02:41.7]} 9. b3 {[%clk 0:02:33.8]} 9... c5 {[%clk
0:02:37.8]} 10. Bb2 {[%clk 0:02:31]} 10... Be7 {[%clk 0:02:37.6]} 11. d3 {[%clk
0:02:31.1]} 11... O-O {[%clk 0:02:36.9]} 12. Nbd2 {[%clk 0:02:29.2]} 12... Rc8
{[%clk 0:02:37.3]} 13. Rac1 {[%clk 0:02:25.4]} 13... Qb6 {[%clk 0:02:17.9]} 14.
Qb1 {[%clk 0:02:21.7]} 14... Rfd8 {[%clk 0:02:15.3]} 15. Qa1 {[%clk 0:02:18.4]}
15... Bf8 {[%clk 0:02:15.2]} 16. a3 {[%clk 0:02:15.7]} 16... Qa7 {[%clk
0:01:50.6]} 17. Ne5 {[%clk 0:02:13.3]} 17... Bxg2 {[%clk 0:01:49.4]} 18. Kxg2
{[%clk 0:02:14.2]} 18... Qb7+ {[%clk 0:01:49.2]} 19. Ndf3 {[%clk 0:02:11.9]}
19... Nxe5 {[%clk 0:01:48.8]} 20. Bxe5 {[%clk 0:02:06.2]} 20... Nd5 {[%clk
0:01:48.6]} 21. Rc2 {[%clk 0:02:02.5]} 21... f6 {[%clk 0:01:47.4]} 22. Bb2
{[%clk 0:02:00.3]} 22... e5 {[%clk 0:01:45]} 23. Rfc1 {[%clk 0:01:59.2]} 23...
Nb6 {[%clk 0:01:39.1]} 24. Bc3 {[%clk 0:01:50.5]} 24... Re8 {[%clk 0:01:35.6]}
25. Ba5 {[%clk 0:01:42.8]} 25... Nd7 {[%clk 0:01:23.4]} 26. b4 {[%clk
0:01:30.9]} 26... e4 {[%clk 0:01:19.4]} 27. dxe4 {[%clk 0:01:20.5]} 27... c4
{[%clk 0:01:17.4]} 28. a4 {[%clk 0:01:15.4]} 28... Qxe4 {[%clk 0:01:10.1]} 29.
axb5 {[%clk 0:01:12.8]} 29... axb5 {[%clk 0:01:11]} 30. Qd4 {[%clk 0:01:08.9]}
30... Qxd4 {[%clk 0:00:49.7]} 31. Nxd4 {[%clk 0:01:08.2]} 31... Re5 {[%clk
0:00:50.3]} 32. e3 {[%clk 0:01:03.5]} 32... Kf7 {[%clk 0:00:49.9]} 33. Rd1
{[%clk 0:00:54.6]} 33... Ke8 {[%clk 0:00:40.8]} 34. Nf3 {[%clk 0:00:53]} 34...
Re7 {[%clk 0:00:27.3]} 35. Rd5 {[%clk 0:00:51.2]} 35... Rb8 {[%clk 0:00:24.9]}
36. Nd4 {[%clk 0:00:51]} 36... Re5 {[%clk 0:00:23.6]} 37. e4 {[%clk 0:00:43.9]}
37... Rxd5 {[%clk 0:00:20.1]} 38. exd5 {[%clk 0:00:44.8]} 38... Bd6 {[%clk
0:00:20.5]} 39. Re2+ {[%clk 0:00:42.3]} 39... Kf7 {[%clk 0:00:20.5]} 40. Re6
{[%clk 0:00:39.8]} 40... Bf8 {[%clk 0:00:15.7]} 41. Rc6 {[%clk 0:00:35.4]} 41...
Ne5 {[%clk 0:00:15.1]} 42. Rc7+ {[%clk 0:00:32.7]} 42... Kg6 {[%clk 0:00:14.9]}
43. Ne6 {[%clk 0:00:24.1]} 43... Nf7 {[%clk 0:00:14.3]} 44. Nxf8+ {[%clk
0:00:14]} 44... Rxf8 {[%clk 0:00:15.2]} 45. Rb7 {[%clk 0:00:12.6]} 45... Nd6
{[%clk 0:00:10]} 46. Rd7 {[%clk 0:00:12.6]} 46... Nf5 {[%clk 0:00:10.1]} 47. Rc7
{[%clk 0:00:11.3]} 47... Re8 {[%clk 0:00:08.7]} 48. Rc5 {[%clk 0:00:11.5]} 48...
Re2 {[%clk 0:00:07.8]} 49. Rxb5 {[%clk 0:00:10.7]} 49... c3 {[%clk 0:00:08.3]}
50. Rc5 {[%clk 0:00:10.8]} 50... c2 {[%clk 0:00:08.9]} 51. b5 {[%clk 0:00:11.1]}
51... Nd4 {[%clk 0:00:06.3]} 52. d6 {[%clk 0:00:09.5]} 52... Nb3 {[%clk
0:00:05.4]} 53. Rxc2 {[%clk 0:00:08.3]} 53... Rxc2 {[%clk 0:00:04.8]} 54. d7
{[%clk 0:00:08.8]} 54... Nxa5 {[%clk 0:00:02.8]} 55. d8=Q {[%clk 0:00:08.8]}
55... Nc4 {[%clk 0:00:01.9]} 56. Qd3+ {[%clk 0:00:08.8]} 1-0

[Event "*** Titled Tuesday Blitz"]
[Site "Chess.com"]
[Date "2021.02.02"]
[Round "6"]
[White "djano"]
[Black "Witik"]
[Result "0-1"]
[WhiteElo "2468"]
[BlackElo "2762"]
[TimeControl "180+1"]
[EndTime "11:09:47 PST"]
[Termination "Witik won by resignation"]

1. Nf3 {[%clk 0:03:00.9]} 1... d5 {[%clk 0:02:56]} 2. d4 {[%clk 0:02:57]} 2...
e6 {[%clk 0:02:54]} 3. Bf4 {[%clk 0:02:57]} 3... Bd6 {[%clk 0:02:53.3]} 4. e3
{[%clk 0:02:55.7]} 4... Bxf4 {[%clk 0:02:52.2]} 5. exf4 {[%clk 0:02:56.6]} 5...
c5 {[%clk 0:02:52.6]} 6. dxc5 {[%clk 0:02:52.5]} 6... Qc7 {[%clk 0:02:51.8]} 7.
g3 {[%clk 0:02:46.5]} 7... Qxc5 {[%clk 0:02:48.3]} 8. Nbd2 {[%clk 0:02:46.9]}
8... Nc6 {[%clk 0:02:47]} 9. c4 {[%clk 0:02:41.2]} 9... Nf6 {[%clk 0:02:40.2]}
10. Rc1 {[%clk 0:02:30.6]} 10... O-O {[%clk 0:02:35.5]} 11. cxd5 {[%clk
0:02:28.9]} 11... Qxd5 {[%clk 0:02:35.1]} 12. Bc4 {[%clk 0:02:28.3]} 12... Qh5
{[%clk 0:02:30.6]} 13. Qe2 {[%clk 0:02:19.9]} 13... Rd8 {[%clk 0:02:27.7]} 14.
O-O {[%clk 0:02:09.9]} 14... Bd7 {[%clk 0:02:17.8]} 15. Kg2 {[%clk 0:01:59.3]}
15... Na5 {[%clk 0:02:00.1]} 16. Ne5 {[%clk 0:01:48.3]} 16... Qxe2 {[%clk
0:01:40.9]} 17. Bxe2 {[%clk 0:01:49.2]} 17... Be8 {[%clk 0:01:35.1]} 18. Ndf3
{[%clk 0:01:38.5]} 18... Nd5 {[%clk 0:01:29.5]} 19. a3 {[%clk 0:01:29.8]} 19...
Rac8 {[%clk 0:01:23.7]} 20. Rfd1 {[%clk 0:01:19.9]} 20... f6 {[%clk 0:01:17.1]}
21. Nd3 {[%clk 0:01:08.9]} 21... Nb3 {[%clk 0:01:15.1]} 22. Rxc8 {[%clk
0:01:08]} 22... Rxc8 {[%clk 0:01:16]} 23. Nd2 {[%clk 0:00:59.1]} 23... Nd4
{[%clk 0:01:06]} 24. Bf3 {[%clk 0:00:47.2]} 24... Rc2 {[%clk 0:00:56.7]} 25.
Bxd5 {[%clk 0:00:44.7]} 25... exd5 {[%clk 0:00:57]} 26. Nf3 {[%clk 0:00:31.9]}
26... Nb3 {[%clk 0:00:27.7]} 27. Nfe1 {[%clk 0:00:27.9]} 27... Rc8 {[%clk
0:00:19.5]} 28. Nb4 {[%clk 0:00:27.3]} 28... d4 {[%clk 0:00:17.4]} 29. f3 {[%clk
0:00:19.6]} 29... Bg6 {[%clk 0:00:14]} 30. g4 {[%clk 0:00:17]} 30... a5 {[%clk
0:00:13.7]} 31. Nbd3 {[%clk 0:00:14.5]} 31... b6 {[%clk 0:00:11.8]} 32. f5
{[%clk 0:00:14.4]} 32... Bf7 {[%clk 0:00:12.1]} 33. Kf2 {[%clk 0:00:12.8]} 33...
Bd5 {[%clk 0:00:11.2]} 34. Nf4 {[%clk 0:00:11.9]} 34... Bc4 {[%clk 0:00:11.5]}
35. Nfd3 {[%clk 0:00:10]} 35... Bxd3 {[%clk 0:00:09.8]} 36. Rxd3 {[%clk
0:00:09.1]} 36... a4 {[%clk 0:00:10.2]} 37. Rd1 {[%clk 0:00:06.1]} 37... Kf7
{[%clk 0:00:09.1]} 38. Ke2 {[%clk 0:00:06]} 38... Ke7 {[%clk 0:00:08.5]} 39. Kd3
{[%clk 0:00:05.9]} 39... Kd6 {[%clk 0:00:08.8]} 40. Nc2 {[%clk 0:00:06.1]} 40...
Kc5 {[%clk 0:00:07.9]} 41. Re1 {[%clk 0:00:04.5]} 41... Rc7 {[%clk 0:00:07.3]}
42. Re6 {[%clk 0:00:04.3]} 42... Rd7 {[%clk 0:00:06.7]} 43. Nb4 {[%clk
0:00:03.8]} 43... Kb5 {[%clk 0:00:07.1]} 44. Re8 {[%clk 0:00:03.2]} 44... Nc5+
{[%clk 0:00:07.3]} 45. Kd2 {[%clk 0:00:03.7]} 45... d3 {[%clk 0:00:07.5]} 46.
Re1 {[%clk 0:00:02.2]} 46... Nb3+ {[%clk 0:00:07.7]} 47. Kd1 {[%clk 0:00:02.6]}
47... d2 {[%clk 0:00:08.6]} 48. Re3 {[%clk 0:00:02.6]} 48... Rc7 {[%clk
0:00:08.7]} 49. Rc3 {[%clk 0:00:03.1]} 49... Re7 {[%clk 0:00:07.3]} 50. Nd3
{[%clk 0:00:02.3]} 50... Ka6 {[%clk 0:00:05.8]} 51. Kc2 {[%clk 0:00:02.6]} 51...
Re1 {[%clk 0:00:04.3]} 52. Rxb3 {[%clk 0:00:01.7]} 52... d1=Q+ {[%clk
0:00:03.7]} 53. Kc3 {[%clk 0:00:01.6]} 53... Qxb3+ {[%clk 0:00:03.9]} 0-1

[Event "*** Titled Tuesday Blitz"]
[Site "Chess.com"]
[Date "2021.02.02"]
[Round "6"]
[White "gilbert_gm"]
[Black "Andrakhanova"]
[Result "1-0"]
[WhiteElo "2538"]
[BlackElo "2286"]
[TimeControl "180+1"]
[EndTime "11:09:48 PST"]
[Termination "gilbert_gm won on time"]

1. d4 {[%clk 0:02:50]} 1... d5 {[%clk 0:03:00]} 2. c4 {[%clk 0:02:50.3]} 2... e6
{[%clk 0:03:00.2]} 3. Nc3 {[%clk 0:02:51]} 3... c6 {[%clk 0:03:00]} 4. e4 {[%clk
0:02:50.7]} 4... dxe4 {[%clk 0:02:57.1]} 5. Nxe4 {[%clk 0:02:51.6]} 5... Bb4+
{[%clk 0:02:57.5]} 6. Nc3 {[%clk 0:02:52]} 6... c5 {[%clk 0:02:56.6]} 7. a3
{[%clk 0:02:50.4]} 7... cxd4 {[%clk 0:02:49.4]} 8. axb4 {[%clk 0:02:49.2]} 8...
dxc3 {[%clk 0:02:49.6]} 9. Qxd8+ {[%clk 0:02:50]} 9... Kxd8 {[%clk 0:02:50.5]}
10. bxc3 {[%clk 0:02:50.4]} 10... Nf6 {[%clk 0:02:47.5]} 11. Be3 {[%clk
0:02:45.8]} 11... Nbd7 {[%clk 0:02:45.5]} 12. Nf3 {[%clk 0:02:39.1]} 12... b6
{[%clk 0:02:41.8]} 13. Be2 {[%clk 0:02:25.8]} 13... Bb7 {[%clk 0:02:41.2]} 14.
O-O {[%clk 0:02:25.9]} 14... h6 {[%clk 0:02:35.8]} 15. Nd4 {[%clk 0:02:16.6]}
15... Ne4 {[%clk 0:02:24.6]} 16. Bf3 {[%clk 0:02:07.2]} 16... Ndf6 {[%clk
0:02:01.1]} 17. Nb5 {[%clk 0:02:01.8]} 17... Ke7 {[%clk 0:01:29]} 18. Nxa7
{[%clk 0:01:31.4]} 18... Rhb8 {[%clk 0:01:23.1]} 19. Bxb6 {[%clk 0:01:25.7]}
19... Nxc3 {[%clk 0:01:17.4]} 20. Bxb7 {[%clk 0:01:20.4]} 20... Rxb7 {[%clk
0:01:16.5]} 21. Nc6+ {[%clk 0:01:20.2]} 21... Kd6 {[%clk 0:01:16]} 22. Rxa8
{[%clk 0:01:10.8]} 22... Ne2+ {[%clk 0:01:12.2]} 23. Kh1 {[%clk 0:01:10]} 23...
Kxc6 {[%clk 0:01:13.1]} 24. c5 {[%clk 0:01:02.6]} 24... Nd5 {[%clk 0:01:10]} 25.
Rc8+ {[%clk 0:00:59.7]} 25... Kb5 {[%clk 0:01:08.2]} 26. Ba5 {[%clk 0:00:55.1]}
26... Nec3 {[%clk 0:00:49]} 27. g3 {[%clk 0:00:47.2]} 27... Nxb4 {[%clk
0:00:38.4]} 28. Bxb4 {[%clk 0:00:46]} 28... Kxb4 {[%clk 0:00:39.3]} 29. c6
{[%clk 0:00:45.5]} 29... Ra7 {[%clk 0:00:37]} 30. Rb8+ {[%clk 0:00:41.6]} 30...
Kc4 {[%clk 0:00:30.8]} 31. Rb7 {[%clk 0:00:39.4]} 31... Ra6 {[%clk 0:00:28.5]}
32. Rxf7 {[%clk 0:00:31.8]} 32... Rxc6 {[%clk 0:00:28.1]} 33. Rxg7 {[%clk
0:00:31.6]} 33... e5 {[%clk 0:00:27.7]} 34. Rg4+ {[%clk 0:00:27.4]} 34... Kd3
{[%clk 0:00:25.2]} 35. Kg2 {[%clk 0:00:27.1]} 35... e4 {[%clk 0:00:21.2]} 36.
Re1 {[%clk 0:00:27.3]} 36... Ra6 {[%clk 0:00:18.4]} 37. Re3+ {[%clk 0:00:26.9]}
37... Kd4 {[%clk 0:00:17.7]} 38. Rxc3 {[%clk 0:00:26.4]} 38... Kxc3 {[%clk
0:00:17.1]} 39. Rxe4 {[%clk 0:00:27.3]} 39... Kd3 {[%clk 0:00:18]} 40. Re3+
{[%clk 0:00:27]} 40... Kd4 {[%clk 0:00:18.1]} 41. h4 {[%clk 0:00:27.9]} 41...
Rb6 {[%clk 0:00:14]} 42. Re8 {[%clk 0:00:28]} 42... Kd5 {[%clk 0:00:12.5]} 43.
h5 {[%clk 0:00:24.9]} 43... Kd4 {[%clk 0:00:10.8]} 44. f3 {[%clk 0:00:24.8]}
44... Rb2+ {[%clk 0:00:09.8]} 45. Kh3 {[%clk 0:00:25.2]} 45... Rb3 {[%clk
0:00:07.9]} 46. Kg4 {[%clk 0:00:24.1]} 46... Rb5 {[%clk 0:00:07.6]} 47. Re6
{[%clk 0:00:21.1]} 47... Rg5+ {[%clk 0:00:07.1]} 48. Kh4 {[%clk 0:00:21.8]}
48... Rf5 {[%clk 0:00:06.7]} 49. f4 {[%clk 0:00:20.6]} 49... Rf8 {[%clk
0:00:04.7]} 50. Rxh6 {[%clk 0:00:20.5]} 50... Ke4 {[%clk 0:00:05.1]} 51. Kg4
{[%clk 0:00:20.9]} 51... Rg8+ {[%clk 0:00:04.6]} 52. Rg6 {[%clk 0:00:21.5]}
52... Re8 {[%clk 0:00:04.7]} 53. h6 {[%clk 0:00:21.4]} 53... Rh8 {[%clk
0:00:04.7]} 54. Kg5 {[%clk 0:00:20.8]} 54... Kf3 {[%clk 0:00:05]} 55. g4 {[%clk
0:00:21.2]} 55... Kg3 {[%clk 0:00:03.6]} 56. f5 {[%clk 0:00:21.3]} 56... Ra8
{[%clk 0:00:03.3]} 57. Rb6 {[%clk 0:00:20.7]} 57... Rg8+ {[%clk 0:00:02.5]} 58.
Rg6 {[%clk 0:00:21.2]} 58... Ra8 {[%clk 0:00:02.3]} 59. h7 {[%clk 0:00:21.9]}
59... Rh8 {[%clk 0:00:01.4]} 60. Kh6 {[%clk 0:00:21.1]} 60... Kh4 {[%clk
0:00:01.6]} 61. g5 {[%clk 0:00:20.7]} 1-0

[Event "*** Titled Tuesday Blitz"]
[Site "Chess.com"]
[Date "2021.02.02"]
[Round "6"]
[White "boasovietica"]
[Black "QuintilianoR"]
[Result "1/2-1/2"]
[WhiteElo "2509"]
[BlackElo "2701"]
[TimeControl "180+1"]
[EndTime "11:09:52 PST"]
[Termination "Game drawn - insufficient material"]

1. c4 {[%clk 0:03:00.9]} 1... e5 {[%clk 0:02:59.2]} 2. g3 {[%clk 0:02:56.5]}
2... Nf6 {[%clk 0:02:59.1]} 3. Bg2 {[%clk 0:02:56.4]} 3... d5 {[%clk 0:02:59.6]}
4. cxd5 {[%clk 0:02:56.7]} 4... Nxd5 {[%clk 0:03:00.5]} 5. Nf3 {[%clk
0:02:57.2]} 5... Nc6 {[%clk 0:02:59.9]} 6. d4 {[%clk 0:02:56.4]} 6... Bb4+
{[%clk 0:02:39.1]} 7. Bd2 {[%clk 0:02:35.6]} 7... e4 {[%clk 0:02:37.9]} 8. Ne5
{[%clk 0:02:25.3]} 8... e3 {[%clk 0:01:55.1]} 9. Bxb4 {[%clk 0:02:00.1]} 9...
exf2+ {[%clk 0:01:48.9]} 10. Kxf2 {[%clk 0:01:57.4]} 10... Ndxb4 {[%clk
0:01:48.7]} 11. Nxc6 {[%clk 0:01:46]} 11... Nxc6 {[%clk 0:01:45.3]} 12. e3
{[%clk 0:01:43.7]} 12... O-O {[%clk 0:01:43.6]} 13. Nc3 {[%clk 0:01:40.2]} 13...
Re8 {[%clk 0:01:41.9]} 14. Qf3 {[%clk 0:01:13.3]} 14... Nxd4 {[%clk 0:01:04.1]}
15. exd4 {[%clk 0:00:34.5]} 15... Qxd4+ {[%clk 0:01:05]} 16. Kf1 {[%clk
0:00:33.9]} 16... Qc4+ {[%clk 0:01:03.3]} 17. Kf2 {[%clk 0:00:27.8]} 17... Bg4
{[%clk 0:00:53.7]} 18. Qf4 {[%clk 0:00:23]} 18... Qc5+ {[%clk 0:00:46.2]} 19.
Kf1 {[%clk 0:00:22]} 19... Be6 {[%clk 0:00:35.8]} 20. Be4 {[%clk 0:00:18.9]}
20... Bh3+ {[%clk 0:00:33.4]} 21. Bg2 {[%clk 0:00:16.3]} 21... Qc6 {[%clk
0:00:20.6]} 22. Qf2 {[%clk 0:00:09.2]} 22... Rad8 {[%clk 0:00:19]} 23. Kg1
{[%clk 0:00:08.3]} 23... Bxg2 {[%clk 0:00:19.3]} 24. Qxg2 {[%clk 0:00:08.4]}
24... Qb6+ {[%clk 0:00:18.7]} 25. Qf2 {[%clk 0:00:08.4]} 25... Qxf2+ {[%clk
0:00:17.9]} 26. Kxf2 {[%clk 0:00:08.6]} 26... Rd2+ {[%clk 0:00:18.8]} 27. Kf3
{[%clk 0:00:08.9]} 27... Rxb2 {[%clk 0:00:19.3]} 28. Rhe1 {[%clk 0:00:09.2]}
28... Rxe1 {[%clk 0:00:17.7]} 29. Rxe1 {[%clk 0:00:08.9]} 29... Kf8 {[%clk
0:00:18.6]} 30. Re2 {[%clk 0:00:09]} 30... Rb4 {[%clk 0:00:18]} 31. Nd5 {[%clk
0:00:08.6]} 31... Rc4 {[%clk 0:00:17.1]} 32. Re4 {[%clk 0:00:08.2]} 32... Rc5
{[%clk 0:00:16.9]} 33. Ne3 {[%clk 0:00:08]} 33... c6 {[%clk 0:00:17.1]} 34. Rd4
{[%clk 0:00:07.9]} 34... Ke7 {[%clk 0:00:16.6]} 35. Re4+ {[%clk 0:00:08.3]}
35... Kd7 {[%clk 0:00:17.1]} 36. Rd4+ {[%clk 0:00:08.6]} 36... Kc7 {[%clk
0:00:17.6]} 37. Rh4 {[%clk 0:00:09.1]} 37... h6 {[%clk 0:00:17.5]} 38. Rg4
{[%clk 0:00:09.4]} 38... g5 {[%clk 0:00:17.4]} 39. h4 {[%clk 0:00:09.8]} 39...
f5 {[%clk 0:00:17.2]} 40. Rd4 {[%clk 0:00:09.9]} 40... a5 {[%clk 0:00:15.9]} 41.
hxg5 {[%clk 0:00:10]} 41... hxg5 {[%clk 0:00:16.8]} 42. Nc4 {[%clk 0:00:08.7]}
42... b6 {[%clk 0:00:14.1]} 43. Ne3 {[%clk 0:00:08.6]} 43... f4 {[%clk
0:00:13.7]} 44. gxf4 {[%clk 0:00:08.4]} 44... gxf4 {[%clk 0:00:14.6]} 45. Kxf4
{[%clk 0:00:08.9]} 45... Rc3 {[%clk 0:00:15.1]} 46. Ke4 {[%clk 0:00:08.3]} 46...
Ra3 {[%clk 0:00:15.6]} 47. Rd2 {[%clk 0:00:08.6]} 47... b5 {[%clk 0:00:16]} 48.
Kd4 {[%clk 0:00:08.1]} 48... Kb6 {[%clk 0:00:16.4]} 49. Nf5 {[%clk 0:00:07.6]}
49... Rf3 {[%clk 0:00:15]} 50. Ne3 {[%clk 0:00:06.6]} 50... Rf4+ {[%clk
0:00:14.8]} 51. Kd3 {[%clk 0:00:06.9]} 51... a4 {[%clk 0:00:14]} 52. a3 {[%clk
0:00:05]} 52... Ka5 {[%clk 0:00:14.3]} 53. Rc2 {[%clk 0:00:04]} 53... Kb6 {[%clk
0:00:14.5]} 54. Kc3 {[%clk 0:00:02.9]} 54... Re4 {[%clk 0:00:14]} 55. Kd3 {[%clk
0:00:03]} 55... Re7 {[%clk 0:00:13.9]} 56. Nd1 {[%clk 0:00:03.2]} 56... Rd7+
{[%clk 0:00:14.4]} 57. Ke2 {[%clk 0:00:03]} 57... c5 {[%clk 0:00:14.8]} 58. Nc3
{[%clk 0:00:02.9]} 58... Rd4 {[%clk 0:00:15.2]} 59. Rb2 {[%clk 0:00:02.9]} 59...
b4 {[%clk 0:00:13.7]} 60. Nxa4+ {[%clk 0:00:03]} 60... Kb5 {[%clk 0:00:14.3]}
61. axb4 {[%clk 0:00:03.4]} 61... Kxa4 {[%clk 0:00:14.1]} 62. bxc5 {[%clk
0:00:03.6]} 62... Rc4 {[%clk 0:00:14.8]} 63. Kd3 {[%clk 0:00:04]} 63... Rxc5
{[%clk 0:00:15.3]} 64. Rc2 {[%clk 0:00:04.6]} 64... Rxc2 {[%clk 0:00:14.7]} 65.
Kxc2 {[%clk 0:00:04.9]} 1/2-1/2